bitfinex-derivatives/quotes_SOLF0:USTF0_20250301
["timestamp","ask_amount","ask_price","bid_price","bid_amount"]
[1740836764688,3.58000131,139.37,139.35,0.04891132]
[1740836764893,3.58000131,139.37,139.25,229.6]
[1740836765079,1.31e-06,139.37,139.25,229.6]
[1740836765282,6.4623,139.33,139.28,6.4639]
[1740836765680,10.92,139.36,139.25,229.6]
[1740836766083,6.5177782,139.32,139.27,6.4646]
[1740836766390,0.0550782,139.32,139.25,229.6]
[1740836767894,0.0550782,139.32,139.27,6.4643]
[1740836768105,0.0550782,139.32,139.25,229.6]
[1740836768290,6.5174782,139.32,139.26,6.4648]
[1740836768798,6.5174782,139.32,139.25,236.0654]
[1740836768799,0.0550782,139.32,139.25,236.0654]
[1740836768997,6.4631,139.31,139.25,6.4654]
[1740836769199,17.3831,139.31,139.25,6.4654]
[1740836769588,6.4634,139.3,139.24,6.4659]
[1740836769897,10.92,139.31,139.19,41.67828373]
[1740836770100,0.05183881,139.28,139.19,41.67828373]
[1740836770299,8.3553,139.29,139.23,6.4661]
[1740836770489,0.05008742,139.25,139.23,6.4661]
[1740836770689,0.05008742,139.25,139.19,41.67828373]
[1740836770887,0.05008742,139.25,139.19,39.72578373]
[1740836771301,0.05008742,139.25,139.2,6.4675]
[1740836771494,0.05008742,139.25,139.18,240.6]
[1740836772589,0.05008742,139.25,139.24,6.4661]
[1740836777799,10.94,139.35,139.29,6.4633]
[1740836778006,10.94,139.35,139.25,10.94]
[1740836778306,1.8225,139.38,139.25,10.94]
[1740836778810,6.4605,139.37,139.25,10.94]
[1740836779005,0.04677026,139.33,139.31,6.4625]
[1740836779207,0.04677026,139.33,139.3,0.04540572]
[1740836779608,0.04677026,139.33,139.32,6.4624]
[1740836780704,0.04677026,139.33,139.31,6.4626]
[1740836780893,0.04677026,139.33,139.3,10.98540572]
[1740836781597,0.04677026,139.33,139.31,6.4625]
[1740836782798,0.04677026,139.33,139.3,10.98540572]
[1740836782999,0.04677026,139.33,139.32,6.4624]
[1740836783604,0.04677026,139.33,139.3,10.98540572]
[1740836783808,0.04677026,139.33,139.3,0.04540572]
[1740836785012,0.04677026,139.33,139.32,6.4624]
[1740836785209,0.04677026,139.33,139.3,0.04540572]
[1740836788603,0.04677026,139.33,139.31,6.4624]
[1740836789210,0.04677026,139.33,139.32,6.4624]
[1740836789516,0.04677026,139.33,139.3,0.04540572]
[1740836790510,0.04677026,139.33,139.3,6.50860572]
[1740836791616,0.04677026,139.33,139.31,6.4626]
[1740836791917,0.04677026,139.33,139.3,0.04540572]
[1740836792118,0.04677026,139.33,139.32,6.4624]
[1740836792416,6.4601,139.37,139.3,0.04540572]
[1740836792617,6.4601,139.37,139.32,6.462]
[1740836792809,6.4601,139.37,139.26,240.7]
[1740836793210,6.4601,139.37,139.32,6.462]
[1740836793409,10.94,139.39,139.26,240.7]
[1740836793612,0.04928189,139.36,139.33,0.05117492]
[1740836794008,6.4614,139.34,139.33,0.05117492]
[1740836794211,0.04928189,139.36,139.26,240.7]
[1740836794509,10.94,139.39,139.26,240.7]
[1740836794911,10.94,139.39,139.26,229.76]
[1740836795106,1.25679998,139.38,139.25,1.95]
[1740836795417,1.25679998,139.38,139.24,3.8236]
[1740836795418,0.04806649,139.33,139.22,6.4668]
[1740836795617,10.92,139.32,139.2,1.9424]
[1740836795810,10.92,139.32,139.19,229.76]
[1740836796012,10.92,139.32,139.21,6.4673]
[1740836796215,10.92,139.32,139.17,1.9626]
[1740836796420,32.48,139.32,139.17,1.9626]
[1740836796611,6.4669,139.23,139.18,6.4685]
[1740836796913,10.94,139.26,139.17,1.9626]
[1740836797118,0.04597672,139.22,139.17,1.9626]
[1740836798223,10.94,139.29,139.17,1.9626]
[1740836799307,10.94,139.29,139.22,0.04686907]
[1740836799721,0.05111893,139.27,139.22,0.04686907]
[1740836800218,6.4652,139.26,139.22,0.04686907]
[1740836800818,0.05111893,139.27,139.22,6.51356907]
[1740836801119,0.05111893,139.27,139.22,0.04686907]
[1740836801529,6.51591893,139.27,139.22,0.04686907]
[1740836801724,0.05111893,139.27,139.22,0.04686907]
[1740836802226,6.4656,139.26,139.22,0.04686907]
[1740836803120,6.4656,139.25,139.22,0.04686907]
[1740836803925,0.05111893,139.27,139.22,0.04686907]
[1740836804127,6.4661,139.24,139.22,0.04686907]
[1740836804327,6.4661,139.24,139.17,1.9626]
[1740836804328,10.94,139.24,139.19,6.4683]
[1740836804527,6.4669,139.23,139.19,6.4683]
[1740836804912,10.94,139.24,139.16,1.9598]
[1740836805113,10.94,139.24,139.18,6.4688]
[1740836805524,10.94,139.24,139.13,10.94]
[1740836805525,0.05107608,139.22,139.14,6.4706]
[1740836805730,10.94,139.24,139.11,1.9909]
[1740836805925,0.04652893,139.19,139.11,1.9909]
[1740836806125,10.98652893,139.19,139.11,1.9909]
[1740836806517,10.98652893,139.19,139.09,3.7457]
[1740836806824,10.94,139.19,139.06,1.9909]
[1740836807028,0.04682632,139.15,139.06,1.9909]
[1740836807223,10.94,139.14,139.06,1.9909]
[1740836807418,0.04633673,139.12,139.06,1.9909]
[1740836808019,0.04633673,139.12,139.08,6.4734]
[1740836808922,0.04633673,139.12,139.06,1.9909]
[1740836809323,6.51833673,139.12,139.06,6.4743]
[1740836809635,0.04633673,139.12,139.06,6.4743]
[1740836810022,6.4722,139.11,139.06,6.4743]
[1740836810524,6.51813673,139.12,139.06,6.4743]
[1740836810725,6.51813673,139.12,139.07,6.4739]
[1740836813940,6.51813673,139.12,139.07,6.4736]
[1740836814534,0.04633673,139.12,139.07,6.4736]
[1740836814733,0.04633673,139.12,139.06,6.4743]
[1740836815533,6.4729,139.1,139.06,6.4743]
[1740836816938,6.4734,139.09,139.05,8.3485]
[1740836817536,6.52400604,139.08,139.05,8.3485]
[1740836817732,6.52400604,139.08,139.05,1.8736]
[1740836817932,6.52810105,139.08,139.05,1.8736]
[1740836818325,6.52810105,139.08,139.05,8.3485]
[1740836818832,6.474,139.07,139.0,1.8623]
[1740836819038,6.474,139.07,139.03,6.4754]
[1740836819238,0.05130598,139.05,139.0,3.781]
[1740836819937,0.05130598,139.05,139.04,6.4754]
[1740836821535,0.05130598,139.05,138.98,3.8749]
[1740836821733,0.05130598,139.05,139.02,6.4759]
[1740836821930,0.05130598,139.05,138.98,3.8749]
[1740836822643,6.4757,139.04,139.0,6.4772]
[1740836823026,0.05130598,139.05,139.0,6.4772]
[1740836823232,6.4755,139.04,139.0,6.4772]
[1740836823437,10.94,139.03,138.9,230.14]
[1740836823648,10.94,139.03,138.93,1.8336]
[1740836823830,0.05214609,139.0,138.97,6.4783]
[1740836824035,0.05214609,139.0,138.93,1.8336]
[1740836824425,6.478,138.99,138.93,1.8336]
[1740836825046,6.52954609,139.0,138.93,1.8336]
[1740836825346,0.05214609,139.0,138.93,1.8336]
[1740836825832,6.52954609,139.0,138.95,7.28671381]
[1740836826429,6.52954609,139.0,138.95,0.80751381]
[1740836826737,6.4782,138.98,138.95,0.80751381]
[1740836826938,17.4182,138.98,138.95,0.80751381]
[1740836827332,10.94,138.98,138.95,0.80751381]
[1740836827939,17.4185,138.98,138.95,0.80751381]
[1740836828143,10.94,138.98,138.95,0.80751381]
[1740836828729,0.05214609,139.0,138.95,0.80751381]
[1740836828934,0.05214609,139.0,138.98,6.4781]
[1740836829135,0.05214609,139.0,138.95,0.80751381]
[1740836829541,0.05214609,139.0,138.96,6.4789]
[1740836830041,0.05214609,139.0,138.97,6.4786]
[1740836830344,6.52954609,139.0,138.95,0.80751381]
[1740836830542,0.05214609,139.0,138.97,6.4784]
[1740836831238,0.05214609,139.0,138.95,0.80751381]
[1740836833043,6.4791,138.96,138.95,0.80751381]
[1740836833235,10.96,138.96,138.85,16.6724]
[1740836833631,0.05257173,138.92,138.91,6.4814]
[1740836833935,10.96,138.96,138.85,16.6724]
[1740836834140,0.05495095,138.93,138.9,6.4818]
[1740836834444,0.05495095,138.93,138.74,241.26]
[1740836834639,0.05495095,138.93,138.75,1.8367]
[1740836834838,0.7342,138.95,138.75,5.565]
[1740836835040,0.05334406,138.85,138.75,5.565]
[1740836835249,0.05334406,138.85,138.82,6.4852]
[1740836835547,17.4432,138.88,138.82,6.4852]
[1740836835747,0.04984675,138.85,138.82,6.4852]
[1740836836051,0.04984675,138.85,138.77,10.96]
[1740836836343,188.78403091,138.94,138.78,10.98]
[1740836836532,0.05378455,138.82,138.75,5.565]
[1740836836735,10.98,138.93,138.75,5.565]
[1740836836736,10.98,138.88,138.81,6.4861]
[1740836836944,4.421e-05,138.8,138.79,11.02]
[1740836837138,17.5009,138.93,138.86,6.4837]
[1740836837336,11.02,138.93,138.79,11.02]
[1740836837648,11.02,138.93,138.75,3.7283]
[1740836837852,11.02,138.93,138.76,11.06]
[1740836838158,0.04949016,138.86,138.83,0.04826438]
[1740836838543,11.06,138.88,138.81,6.486]
[1740836838743,0.04893407,138.86,138.83,0.04578041]
[1740836839146,0.04893407,138.86,138.75,3.7283]
[1740836839341,0.7384,138.87,138.75,3.7283]
[1740836840439,0.05181307,138.82,138.75,3.7283]
[1740836840947,0.05181307,138.82,138.62,24.1495]
[1740836841146,6.4874,138.79,138.68,1.9841]
[1740836841447,0.04904382,138.75,138.69,1.9807]
[1740836841646,0.04904382,138.75,138.72,6.4901]
[1740836841844,0.04904382,138.75,138.68,1.9841]
[1740836842148,11.16,138.78,138.69,13.1807]
[1740836842741,11.16,138.78,138.72,6.4901]
[1740836842939,11.16,138.78,138.69,1.9807]
[1740836843141,17.6479,138.78,138.69,1.9807]
[1740836843348,0.05431481,138.75,138.72,0.0533063]
[1740836843957,11.24,138.81,138.72,0.0533063]
[1740836844160,11.24,138.86,138.72,11.2933063]
[1740836844452,11.24,138.86,138.73,1.9846]
[1740836844654,11.24,138.86,138.8,6.4865]
[1740836844955,11.24,138.88,138.73,1.9846]
[1740836845138,0.05265187,138.84,138.82,0.05043877]
[1740836845341,11.24,138.89,138.79,11.24]
[1740836845556,11.24,138.89,138.82,0.05350914]
[1740836845749,11.24,138.89,138.83,6.4848]
[1740836846250,6.4815,138.91,138.82,0.05350914]
[1740836846557,0.7417,138.93,138.79,11.24]
[1740836846558,0.04957641,138.87,138.79,11.24]
[1740836846742,0.04957641,138.87,138.79,241.8]
[1740836846946,0.04957641,138.87,138.85,0.04968732]
[1740836847148,0.04957641,138.87,138.79,241.8]
[1740836847447,0.7907,138.97,138.87,6.4832]
[1740836847643,11.28,138.96,138.87,6.4832]
[1740836848039,11.28,138.96,138.84,11.28]
[1740836848447,11.28,138.96,138.8,13.3174]
[1740836848649,6.53661103,138.91,138.89,0.04718993]
[1740836849052,6.4818,138.91,138.89,0.04718993]
[1740836849253,6.53558257,138.91,138.89,0.04718993]
[1740836849649,0.05378257,138.91,138.89,0.04718993]
[1740836851047,6.53538257,138.91,138.89,0.04718993]
[1740836851357,0.05378257,138.91,138.89,0.04718993]
[1740836853052,6.53518257,138.91,138.89,0.04718993]
[1740836854455,0.05378257,138.91,138.89,0.04718993]
[1740836855056,0.05378257,138.91,138.89,6.52908993]
[1740836855357,17.8199,138.95,138.89,6.52908993]
[1740836855662,11.34,138.95,138.89,3.89338993]
[1740836856062,11.34,138.95,138.9,6.4818]
[1740836856256,17.82,138.95,138.89,3.89338993]
[1740836856450,11.34,138.95,138.89,3.89338993]
[1740836856655,0.0499977,138.93,138.89,3.89338993]
[1740836856963,0.0499977,138.93,138.89,10.37558993]
[1740836857161,0.0499977,138.93,138.89,3.89338993]
[1740836857356,188.78403091,139.03,138.9,11.38]
[1740836857565,11.38,139.02,138.9,11.38]
[1740836857960,6.4776,139.0,138.95,6.4793]
[1740836858163,11.38,139.02,138.9,11.38]
[1740836858463,0.05372685,138.99,138.96,0.05322151]
[1740836858967,9.66545286,139.08,138.96,0.05322151]
[1740836859164,6.4762,139.03,138.97,6.4783]
[1740836859461,11.38,139.07,138.9,241.86]
[1740836859661,6.479,138.97,138.91,6.4812]
[1740836859966,11.38,139.0,138.89,3.8462]
[1740836860163,11.38,139.0,138.93,0.04857325]
[1740836860164,0.05346482,138.95,138.93,0.04857325]
[1740836860360,11.38,138.95,138.93,0.04857325]
[1740836860673,11.43306397,138.95,138.93,0.04857325]
[1740836860867,6.4803,138.94,138.93,0.04857325]
[1740836861865,11.43306397,138.95,138.82,99.57020759]
[1740836862066,17.8596,138.95,138.83,13.3312]
[1740836862256,11.38,138.95,138.83,13.3312]
[1740836862456,6.4791,138.97,138.84,1.9203]
[1740836862662,11.36,139.0,138.84,1.9203]
[1740836862963,11.36,139.0,138.91,6.4814]
[1740836863171,0.05225676,138.93,138.91,6.52827083]
[1740836863366,11.36,139.0,138.92,2.0005]
[1740836863869,0.04783293,138.97,138.95,0.05453058]
[1740836864266,6.4791,138.96,138.95,0.05453058]
[1740836864667,6.4791,138.96,138.95,3.058e-05]
[1740836865371,10.0791,138.96,138.95,3.058e-05]
[1740836865558,4.4869,138.96,138.83,3.8806]
[1740836865764,11.36,138.95,138.83,3.8806]
[1740836866667,11.36,138.95,138.87,6.4831]
[1740836866866,0.05403358,138.9,138.88,0.04941041]
[1740836867170,11.36,138.95,138.88,0.04941041]
[1740836867369,0.04915728,138.9,138.88,0.04941041]
[1740836867678,0.05128961,138.9,138.88,0.04941041]
[1740836868672,6.4824,138.89,138.88,0.04941041]
[1740836869474,11.39128961,138.9,138.88,0.04941041]
[1740836871270,6.4824,138.89,138.88,0.04941041]
[1740836871473,6.4824,138.89,138.88,1.041e-05]
[1740836871671,3.6,138.89,138.82,2.0005]
[1740836871864,11.34,138.9,138.82,2.0005]
[1740836872067,6.4836,138.87,138.83,6.4851]
[1740836872372,11.34,138.9,138.82,2.0005]
[1740836872568,11.34,138.9,138.83,3.8033]
[1740836872772,0.0529781,138.87,138.85,0.05210895]
[1740836873374,0.0529781,138.87,138.86,6.4836]
[1740836873976,0.0529781,138.87,138.85,0.05210895]
[1740836874375,6.4838,138.86,138.85,0.05210895]
[1740836875471,0.0529781,138.87,138.85,0.05210895]
[1740836875775,6.5363781,138.87,138.85,0.05210895]
[1740836876380,0.0529781,138.87,138.85,0.05210895]
[1740836876964,6.5365781,138.87,138.85,0.05210895]
[1740836877376,0.0529781,138.87,138.85,0.05210895]
[1740836879680,0.0529781,138.87,138.85,6.53600895]
[1740836879879,0.0529781,138.87,138.85,0.05210895]
[1740836880076,11.4,138.92,138.85,0.05210895]
[1740836880276,6.4816,138.91,138.87,6.483]
[1740836880981,11.4,138.92,138.84,1.8833]
[1740836881185,6.53090869,138.9,138.88,0.04776585]
[1740836881378,0.04870869,138.9,138.88,0.04776585]
[1740836882881,6.4797,138.95,138.9,6.4819]
[1740836883079,11.38,138.98,138.89,1.9753]
[1740836883381,33.0,138.98,138.85,1.9753]
[1740836883582,6.4813,138.92,138.87,6.4832]
[1740836883984,0.04756405,138.91,138.88,0.05471698]
[1740836884283,6.52906405,138.91,138.88,0.05471698]
[1740836884482,0.04756405,138.91,138.88,6.53751698]
[1740836885081,0.04756405,138.91,138.88,0.05471698]
[1740836885682,0.04756405,138.91,138.88,6.53741698]
[1740836885891,0.04756405,138.91,138.88,0.05471698]
[1740836887073,0.04756405,138.91,138.89,6.4824]
[1740836887578,0.04756405,138.91,138.88,6.53721698]
[1740836887884,0.04756405,138.91,138.88,0.05471698]
[1740836888082,0.04756405,138.91,138.9,6.4819]
[1740836888479,17.8392,138.96,138.88,0.05471698]
[1740836889380,6.4792,138.96,138.88,0.05471698]
[1740836889586,0.04996311,138.93,138.92,6.4808]
[1740836889785,0.04996311,138.93,138.87,11.34]
[1740836889979,0.04996311,138.93,138.91,0.04562698]
[1740836890183,0.04996311,138.93,138.85,1.9753]
[1740836890386,6.4815,138.91,138.87,6.4833]
[1740836890587,6.4815,138.91,138.88,0.05193174]
[1740836892790,11.38996311,138.93,138.88,0.05193174]
[1740836893880,6.4839,138.86,138.82,6.4852]
[1740836894586,6.4834,138.87,138.83,6.4852]
[1740836895088,0.05424968,138.86,138.84,0.05064032]
[1740836895779,6.53814968,138.86,138.84,0.05064032]
[1740836896384,0.05424968,138.86,138.84,0.05064032]
[1740836897087,0.05424968,138.86,138.84,6.53514032]
[1740836897289,0.05424968,138.86,138.84,0.05064032]
[1740836898184,0.05424968,138.86,138.84,6.53514032]
[1740836899896,0.05424968,138.86,138.84,0.05064032]
[1740836900580,6.4842,138.85,138.84,0.05064032]
[1740836900980,6.4866,138.8,138.78,3.7609]
[1740836901489,11.3,138.87,138.78,3.7609]
[1740836901690,6.4864,138.81,138.78,3.7609]
[1740836901886,11.3,138.87,138.76,1.9207]
[1740836902094,0.05384073,138.81,138.78,0.04649009]
[1740836902286,11.3,138.87,138.76,1.9207]
[1740836902489,0.04577081,138.81,138.78,0.05136441]
[1740836902687,6.485,138.84,138.8,6.4863]
[1740836902888,0.05170163,138.81,138.78,0.04906798]
[1740836903094,11.3,138.87,138.76,1.9207]
[1740836903694,49.96181146,138.91,138.83,6.4849]
[1740836903885,49.96181146,138.91,138.8,11.3]
[1740836904088,49.96181146,138.91,138.81,1.9756]
[1740836904289,0.05418235,138.87,138.84,0.05237519]
[1740836904890,0.05418235,138.87,138.85,6.484]
[1740836905079,0.05418235,138.87,138.84,0.05237519]
[1740836905479,38.66181146,138.91,138.84,0.05237519]
[1740836906094,38.66181146,138.91,138.85,11.28]
[1740836906291,6.4797,138.95,138.85,11.28]
[1740836906601,6.48,138.94,138.89,6.4821]
[1740836906791,0.04751563,138.91,138.89,0.05018915]
[1740836906981,11.28,138.9,138.89,0.05018915]
[1740836907186,11.28,138.9,138.82,1.8463]
[1740836907384,11.28,138.9,138.81,1.9756]
[1740836907585,6.485,138.84,138.81,1.9756]
[1740836908092,11.28,138.85,138.78,1.8333]
[1740836908392,0.04790821,138.84,138.81,0.0487456]
[1740836908597,0.04790821,138.84,138.76,1.9012]
[1740836908989,0.04790821,138.84,138.73,1.9159]
[1740836909186,32.9,138.85,138.73,1.9159]
[1740836909391,32.9,138.85,138.72,1.9482]
[1740836909895,0.0520768,138.8,138.72,1.9482]
[1740836910092,11.28,138.79,138.77,0.05088441]
[1740836910289,32.9,138.79,138.71,39.72578373]
[1740836910484,0.1694,138.78,138.71,39.72578373]
[1740836910988,6.489,138.75,138.71,39.72578373]
[1740836911189,11.26,138.74,138.71,39.72578373]
[1740836911399,11.31176937,138.74,138.72,0.05044887]
[1740836912289,6.4898,138.73,138.72,0.05044887]
[1740836912799,11.31176937,138.74,138.6,281.52578373]
[1740836912999,11.26,138.74,138.6,39.72578373]
[1740836913207,11.26,138.74,138.61,3.7678]
[1740836913396,6.4904,138.72,138.61,3.7678]
[1740836913790,0.05159637,138.68,138.66,6.4929]
[1740836913986,6.4907,138.72,138.61,3.7678]
[1740836914196,0.05429327,138.68,138.66,0.04793728]
[1740836915996,0.895,138.77,138.66,0.04793728]
[1740836916302,11.28,138.75,138.64,11.28]
[1740836916495,11.28,138.75,138.68,6.4918]
[1740836916694,6.4885,138.76,138.64,11.28]
[1740836916899,11.3,138.77,138.64,11.28]
[1740836917099,0.0468583,138.71,138.69,0.05230097]
[1740836917296,11.3,138.77,138.69,0.05230097]
[1740836917601,11.3,138.77,138.7,6.4909]
[1740836917802,17.7884,138.77,138.7,8.3808]
[1740836917995,1.0714,138.82,138.7,1.8899]
[1740836918190,11.28,138.8,138.7,1.8899]
[1740836918396,0.04868293,138.77,138.74,0.04970656]
[1740836919008,6.4889,138.75,138.74,0.04970656]
[1740836919300,11.28,138.75,138.67,6.4925]
[1740836919606,6.4902,138.73,138.67,6.4925]
[1740836920398,0.05455946,138.71,138.69,0.04598352]
[1740836921910,11.28,138.8,138.69,0.04598352]
[1740836922104,11.28,138.8,138.66,1.8481]
[1740836922410,11.28,138.81,138.73,6.4896]
[1740836922610,11.28,138.81,138.7,11.28]
[1740836922811,11.28,138.83,138.7,11.28]
[1740836923011,0.04775758,138.77,138.74,0.05230199]
[1740836923208,11.28,138.85,138.77,6.4878]
[1740836923413,1.1235,138.87,138.75,11.28]
[1740836923615,12.3835,138.87,138.76,2.0217]
[1740836923912,6.4848,138.84,138.76,2.0217]
[1740836924411,0.05483172,138.81,138.79,0.04560876]
[1740836924613,6.4844,138.85,138.79,0.04560876]
[1740836925314,6.4844,138.85,138.79,6.53250876]
[1740836925815,0.0505263,138.83,138.79,6.53250876]
[1740836926015,0.0505263,138.83,138.79,0.04560876]
[1740836926411,0.0505263,138.83,138.79,6.53260876]
[1740836927111,0.0505263,138.83,138.79,0.04560876]
[1740836928105,6.4866,138.8,138.79,0.04560876]
[1740836928809,0.0505263,138.83,138.79,0.04560876]
[1740836929005,6.4862,138.81,138.79,0.04560876]
[1740836930503,6.4858,138.82,138.79,0.04560876]
[1740836930716,0.0505263,138.83,138.79,0.04560876]
[1740836931916,0.0505263,138.83,138.79,6.53250876]
[1740836932414,6.4856,138.82,138.79,0.04560876]
[1740836932717,0.0505263,138.83,138.79,0.04560876]
[1740836933212,6.4864,138.81,138.79,0.04560876]
[1740836934212,11.24,138.81,138.79,0.04560876]
[1740836934522,6.4866,138.8,138.79,0.04560876]
[1740836934814,11.24,138.81,138.71,11.24]
[1740836935115,11.24,138.81,138.69,3.981]
[1740836935116,11.24,138.81,138.7,1.9972]
[1740836935617,6.4871,138.79,138.75,6.4886]
[1740836936118,0.04770718,138.78,138.76,0.05075086]
[1740836937317,0.04770718,138.78,138.76,6.53915086]
[1740836937714,0.04770718,138.78,138.76,0.05075086]
[1740836938819,0.04770718,138.78,138.76,6.53915086]
[1740836940720,0.04770718,138.78,138.77,6.488]
[1740836940919,0.04770718,138.78,138.76,0.05075086]
[1740836941316,11.22,138.84,138.76,0.05075086]
[1740836941513,6.4839,138.86,138.76,0.05075086]
[1740836941714,6.4839,138.86,138.74,11.2]
[1740836942220,11.2,138.9,138.74,11.2]
[1740836942424,0.05427474,138.81,138.79,0.0543505]
[1740836942611,11.2,138.9,138.8,11.2]
[1740836942818,11.2,138.91,138.8,11.2]
[1740836943722,6.53633174,138.87,138.84,0.0546586]
[1740836944123,0.05253174,138.87,138.84,0.0546586]
[1740836944326,6.4842,138.85,138.84,0.0546586]
[1740836944917,6.4842,138.85,138.84,5.86e-05]
[1740836947320,10.0842,138.85,138.84,5.86e-05]
[1740836947520,10.4822,138.85,138.84,5.86e-05]
[1740836949935,11.72902008,138.85,138.84,5.86e-05]
[1740836951929,6.8822,138.85,138.84,5.86e-05]
[1740836952134,10.4822,138.85,138.84,5.86e-05]
[1740836952728,21.2442,138.85,138.84,5.86e-05]
[1740836953236,33.43127858,138.85,138.73,1.9891]
[1740836953442,6.4885,138.76,138.73,1.9891]
[1740836953940,6.4885,138.76,138.73,8.4788]
[1740836954129,6.4881,138.77,138.73,8.4788]
[1740836954329,11.16,138.79,138.73,1.9891]
[1740836954640,0.04958573,138.76,138.74,0.0531516]
[1740836955529,1.2755,138.86,138.78,6.4874]
[1740836955735,11.16,138.85,138.75,1.8807]
[1740836956737,0.05276698,138.81,138.79,0.04907842]
[1740836959143,11.18,138.86,138.79,0.04907842]
[1740836959951,11.18,138.86,138.81,6.4858]
[1740836960144,11.18,138.86,138.8,1.8578]
[1740836960344,6.53651874,138.85,138.82,0.04937589]
[1740836960554,0.05201874,138.85,138.82,0.04937589]
[1740836960939,6.53631874,138.85,138.82,0.04937589]
[1740836961144,0.05201874,138.85,138.82,0.04937589]
[1740836962745,6.4852,138.83,138.82,0.04937589]
[1740836963056,0.05201874,138.85,138.82,0.04937589]
[1740836963255,0.05201874,138.85,138.76,10.2912]
[1740836963453,0.4465,138.85,138.76,1.8578]
[1740836963941,6.4873,138.79,138.76,1.8578]
[1740836964147,11.16,138.81,138.76,1.8578]
[1740836964349,11.16,138.81,138.76,8.3459]
[1740836964661,0.046328,138.8,138.77,0.05108032]
[1740836965258,6.4875,138.78,138.77,0.05108032]
[1740836965640,6.4894,138.74,138.7,3.8284]
[1740836965848,11.16,138.76,138.69,1.8787]
[1740836966357,11.16,138.76,138.69,8.3703]
[1740836966756,0.05283671,138.74,138.71,0.05068158]
[1740836967347,0.05283671,138.74,138.71,8.158e-05]
[1740836967959,6.4903,138.72,138.71,8.158e-05]
[1740836970664,6.49,138.73,138.71,8.158e-05]
[1740836970843,0.05283671,138.74,138.71,8.158e-05]
[1740836972955,0.05283671,138.74,138.72,6.4903]
[1740836973261,0.05283671,138.74,138.71,8.158e-05]
[1740836974058,6.4903,138.72,138.71,8.158e-05]
[1740836974260,17.6903,138.72,138.71,8.158e-05]
[1740836974849,21.2903,138.72,138.71,8.158e-05]
[1740836975560,17.6903,138.72,138.71,8.158e-05]
[1740836976859,21.2903,138.72,138.71,8.158e-05]
[1740836977058,17.6903,138.72,138.71,8.158e-05]
[1740836978862,6.4903,138.73,138.71,8.158e-05]
[1740836979064,0.05283671,138.74,138.71,8.158e-05]
[1740836980465,6.4898,138.73,138.71,8.158e-05]
[1740836982862,0.05283671,138.74,138.71,8.158e-05]
[1740836983062,6.4903,138.72,138.71,8.158e-05]
[1740836983666,0.05283671,138.74,138.71,8.158e-05]
[1740836984465,11.16,138.79,138.71,8.158e-05]
[1740836985356,6.4887,138.76,138.71,8.158e-05]
[1740836985669,0.05171269,138.76,138.71,8.158e-05]
[1740836987661,6.4902,138.73,138.71,8.158e-05]
[1740836988271,6.54031269,138.76,138.71,6.49038158]
[1740836988571,0.05171269,138.76,138.71,8.158e-05]
[1740836989461,6.488,138.77,138.71,8.158e-05]
[1740836989656,6.488,138.77,138.69,1.9423]
[1740836989873,11.16,138.81,138.69,1.9423]
[1740836990063,6.4873,138.79,138.75,6.4886]
[1740836990263,11.16,138.83,138.72,11.16]
[1740836990460,6.4878,138.78,138.76,0.05179236]
[1740836990775,11.16,138.83,138.76,0.05179236]
[1740836990776,0.04595316,138.79,138.76,0.05179236]
[1740836991071,6.488,138.77,138.76,0.05179236]
[1740836992471,6.488,138.77,138.76,9.236e-05]
[1740836996373,0.04595316,138.79,138.76,9.236e-05]
[1740836996581,6.4877,138.78,138.76,9.236e-05]
[1740836997172,0.04595316,138.79,138.76,9.236e-05]
[1740836997375,6.53295316,138.79,138.76,9.236e-05]
[1740836997679,6.53295316,138.79,138.76,1.86369236]
[1740836998374,0.04595316,138.79,138.76,1.86369236]
[1740836998578,6.4878,138.78,138.76,1.86369236]
[1740836998880,0.04595316,138.79,138.76,1.86369236]
[1740836999077,6.53335316,138.79,138.76,1.86369236]
[1740836999985,6.4875,138.78,138.76,1.86369236]
[1740837000285,0.04595316,138.79,138.76,1.86369236]